bitfinex/quotes_BTCUSD_20220111
["timestamp","ask_amount","ask_price","bid_price","bid_amount"]
[1641914784230,1.64577945,41773.0,41772.0,0.0655]
[1641914784630,0.23508705,41773.0,41772.0,0.0655]
[1641914784833,0.05987718,41774.0,41772.0,0.0655]
[1641914785031,0.0006832,41775.0,41772.0,0.0655]
[1641914785232,0.0006832,41775.0,41772.0,0.38369711]
[1641914785431,0.00124769,41778.0,41772.0,0.38369711]
[1641914785432,0.059871,41777.0,41772.0,0.0655]
[1641914785632,0.05986853,41775.0,41772.0,0.0655]
[1641914785833,0.4598399,41776.0,41772.0,0.0655]
[1641914786036,0.0006832,41776.0,41773.0,0.05987]
[1641914786235,0.0006832,41776.0,41773.0,0.36878115]
[1641914786434,0.0006832,41776.0,41774.0,0.059865]
[1641914786632,0.00123213,41780.0,41775.0,0.0654]
[1641914786633,0.00070142,41777.0,41775.0,0.0654]
[1641914786880,0.00070142,41777.0,41776.0,0.33493826]
[1641914787079,0.00070142,41777.0,41776.0,0.0654]
[1641914787282,0.80070142,41777.0,41776.0,0.0654]
[1641914787582,0.00070142,41777.0,41776.0,0.0654]
[1641914787780,0.59934526,41785.0,41776.0,0.0654]
[1641914787981,0.0007014,41779.0,41775.0,0.29805297]
[1641914788181,0.0007014,41779.0,41778.0,0.0654]
[1641914788582,0.0007014,41779.0,41778.0,0.45141161]
[1641914788882,0.74562717,41782.0,41778.0,0.1154]
[1641914789083,0.00070138,41781.0,41778.0,0.1154]
[1641914789282,0.95070138,41781.0,41780.0,0.0654]
[1641914789783,0.05985354,41782.0,41780.0,0.0654]
[1641914789982,0.42,41785.0,41780.0,0.0654]
[1641914790190,0.343,41785.0,41781.0,0.1]
[1641914790386,0.59085854,41787.0,41782.0,0.05]
[1641914790387,0.0007031,41783.0,41782.0,0.05]
[1641914790633,0.11289364,41787.0,41783.0,0.3]
[1641914790830,0.38305305,41789.0,41785.0,0.1]
[1641914791031,0.38305305,41789.0,41786.0,0.69180052]
[1641914791227,0.78757491,41795.0,41788.0,0.119656]
[1641914791428,0.001,41795.0,41788.0,0.119656]
[1641914791628,0.001,41795.0,41793.0,0.0654]
[1641914791827,0.94015782,41794.0,41793.0,0.0654]
[1641914792228,0.50983413,41794.0,41793.0,0.0654]
[1641914792428,0.50983413,41794.0,41793.0,0.1154]
[1641914792830,0.55983413,41794.0,41793.0,0.0654]
[1641914793228,0.85983413,41794.0,41793.0,0.0654]
[1641914793427,0.43166746,41790.0,41786.0,0.05]
[1641914793627,0.43166746,41790.0,41783.0,0.119692]
[1641914793628,0.05984636,41789.0,41784.0,0.05]
[1641914793828,0.05984636,41789.0,41784.0,0.109847]
[1641914794030,0.05984636,41789.0,41787.0,0.0999]
[1641914795079,0.00085581,41790.0,41787.0,0.0999]
[1641914795277,0.00085581,41790.0,41787.0,0.059836]
[1641914795481,0.00085581,41790.0,41789.0,0.0999]
[1641914795677,0.00085581,41790.0,41789.0,0.52810748]
[1641914796077,0.40924107,41794.0,41789.0,0.52810748]
[1641914796278,0.00085579,41792.0,41791.0,0.059844]
[1641914796678,0.00085579,41792.0,41791.0,0.0999]
[1641914796880,0.05085579,41792.0,41791.0,0.0999]
[1641914797277,0.7,41792.0,41791.0,0.0999]
[1641914797478,0.1196855,41793.0,41791.0,0.0999]
[1641914797680,0.00085577,41794.0,41791.0,0.0999]
[1641914797877,0.00085577,41794.0,41787.0,0.6234884]
[1641914798135,0.00085577,41794.0,41793.0,0.0999]
[1641914798528,0.31784819,41794.0,41793.0,0.0999]
[1641914799128,1.16784819,41794.0,41793.0,0.0999]
[1641914799528,1.59142823,41794.0,41793.0,0.0999]
[1641914800129,1.06784819,41794.0,41793.0,0.0999]
[1641914800329,0.31784819,41794.0,41793.0,0.0999]
[1641914800529,0.90576242,41795.0,41793.0,0.0999]
[1641914800530,0.45383339,41795.0,41793.0,0.0999]
[1641914800930,0.40383339,41795.0,41793.0,0.159737]
[1641914801129,0.40383339,41795.0,41793.0,0.0999]
[1641914801532,0.77975905,41795.0,41793.0,0.0999]
[1641914801985,0.99575958,41794.0,41793.0,0.0999]
[1641914803184,1.35772091,41794.0,41793.0,0.0999]
[1641914803787,1.45899467,41794.0,41793.0,0.0999]
[1641914803987,1.45899467,41794.0,41782.0,0.0999]
[1641914803988,1.2,41793.0,41782.0,0.0999]
[1641914804188,0.00127959,41786.0,41782.0,0.0999]
[1641914804389,0.00127959,41786.0,41778.0,0.00085129]
[1641914804591,0.00127959,41786.0,41784.0,0.0999]
[1641914804790,1.34311062,41785.0,41784.0,0.0999]
[1641914805191,0.06070659,41786.0,41784.0,0.1499]
[1641914805636,0.00085585,41786.0,41783.0,0.059857]
[1641914805835,0.25064806,41791.0,41785.0,0.0999]
[1641914806032,0.25064806,41791.0,41786.0,0.40863558]
[1641914806033,0.00085584,41787.0,41786.0,0.40863558]
[1641914806234,0.00085584,41787.0,41786.0,0.83544973]
[1641914806430,0.00085584,41787.0,41786.0,1.20626273]
[1641914806631,0.00085584,41787.0,41786.0,1.40737113]
[1641914806829,0.00085584,41787.0,41786.0,1.45826526]
[1641914807029,0.344,41795.0,41787.0,0.04112176]
[1641914807230,0.00085582,41789.0,41788.0,2.25677802]
[1641914807429,0.00085582,41789.0,41788.0,2.34497965]
[1641914807629,0.344,41795.0,41794.0,0.32445962]
[1641914808229,0.344,41795.0,41793.0,0.69221827]
[1641914808230,0.344,41795.0,41793.0,0.73229527]
[1641914808431,0.344,41795.0,41794.0,0.001]
[1641914808832,0.01,41799.0,41795.0,0.35]
[1641914809132,0.01,41799.0,41795.0,0.459822]
[1641914809578,0.01085206,41799.0,41795.0,0.459822]
[1641914809778,0.01085206,41799.0,41798.0,0.0999]
[1641914810378,0.01085206,41799.0,41798.0,0.1029]
[1641914810579,0.01,41799.0,41798.0,0.1029]
[1641914810782,0.33041268,41799.0,41798.0,0.1029]
[1641914810979,1.03041268,41799.0,41798.0,0.1029]
[1641914811580,1.03041268,41799.0,41798.0,0.0999]
[1641914811780,0.38041268,41799.0,41798.0,0.0999]
[1641914811982,0.68041268,41799.0,41798.0,0.0999]
[1641914812184,1.14954897,41799.0,41798.0,0.0999]
[1641914812783,1.24954897,41799.0,41798.0,0.0999]
[1641914812983,1.84954897,41799.0,41798.0,0.0999]
[1641914814032,1.84954897,41799.0,41786.0,1.8017379]
[1641914814033,0.1998,41792.0,41787.0,0.059851]
[1641914814233,1.19474856,41798.0,41787.0,0.059851]
[1641914814433,0.42101076,41791.0,41786.0,0.3090379]
[1641914814834,0.47101076,41791.0,41790.0,0.0999]
[1641914815233,0.05,41791.0,41790.0,0.0999]
[1641914815437,0.16969721,41791.0,41790.0,0.0999]
[1641914815633,0.11969721,41791.0,41790.0,0.0999]
[1641914815833,0.05984735,41792.0,41790.0,0.0999]
[1641914816886,1.55239742,41791.0,41790.0,0.0999]
[1641914817088,1.49525585,41791.0,41790.0,0.0999]
[1641914817882,1.7377717,41791.0,41790.0,0.0999]
[1641914818083,1.6377717,41791.0,41790.0,0.0999]
[1641914818383,1.7917717,41791.0,41790.0,0.0949]
[1641914818582,1.7917717,41791.0,41790.0,0.04209044]
[1641914818987,0.04209,41790.0,41784.0,0.005]
[1641914819185,0.00126492,41785.0,41784.0,0.00585596]
[1641914819384,1.35247732,41785.0,41784.0,0.00585596]
[1641914819585,1.50247732,41785.0,41784.0,0.00585596]
[1641914819787,0.37830045,41785.0,41784.0,0.00585596]
[1641914819984,0.0452318,41785.0,41784.0,0.00585596]
[1641914820186,0.044,41785.0,41784.0,0.005]
[1641914820389,0.054,41785.0,41784.0,0.1049]
[1641914820838,0.054,41785.0,41784.0,0.84598396]
[1641914821035,0.054,41785.0,41784.0,1.24598396]
[1641914821235,0.054,41785.0,41784.0,1.70046381]
[1641914821640,0.05984855,41790.0,41784.0,0.89598396]
[1641914821837,0.00085184,41791.0,41785.0,0.059851]
[1641914822036,0.00085184,41791.0,41790.0,0.6999]
[1641914822436,0.03185184,41791.0,41790.0,0.7499]
[1641914822636,0.031,41791.0,41790.0,0.7499]
[1641914822837,0.031,41791.0,41790.0,1.1580417]
[1641914823038,0.031,41791.0,41790.0,0.5580417]
[1641914823238,0.031,41791.0,41790.0,1.5580417]
[1641914823642,0.000852,41793.0,41790.0,1.55933961]
[1641914823843,0.000852,41793.0,41791.0,0.68039381]
[1641914824042,0.000852,41793.0,41792.0,1.649114]
[1641914824254,0.01,41799.0,41794.0,0.22347885]
[1641914824484,0.01,41799.0,41792.0,0.229462]
[1641914824485,0.003,41793.0,41792.0,0.229462]
[1641914825283,0.003,41793.0,41792.0,1.05368511]
[1641914825683,0.46734729,41794.0,41792.0,1.05368511]
[1641914825884,0.46234729,41794.0,41792.0,1.05368511]
[1641914826486,0.032,41794.0,41792.0,1.05568511]
[1641914826688,0.032,41794.0,41793.0,1.45301584]
[1641914827585,0.01,41799.0,41793.0,1.45301584]
[1641914827785,0.01,41799.0,41795.0,0.059829]
[1641914827985,0.01,41799.0,41796.0,0.25205273]
[1641914828239,0.58948749,41807.0,41798.0,0.09278509]
[1641914828442,0.58948749,41807.0,41799.0,0.78491768]
[1641914828638,0.58948749,41807.0,41803.0,0.02098785]
[1641914828840,0.58948749,41807.0,41804.0,0.17942296]
[1641914829037,0.58948749,41807.0,41805.0,0.92199387]
[1641914829237,0.58948749,41807.0,41806.0,2.10378264]
[1641914829440,0.11106249,41807.0,41806.0,2.47459564]
[1641914829638,0.11106249,41812.0,41806.0,2.47459564]
[1641914829939,0.11106249,41812.0,41809.0,0.0598]
[1641914830140,0.53014839,41814.0,41811.0,0.1]
[1641914830341,0.78657491,41820.0,41813.0,1.3012088]
[1641914830539,0.78657491,41820.0,41818.0,0.26076646]
[1641914830740,0.78657491,41820.0,41818.0,0.69202946]
[1641914830940,0.78657491,41820.0,41818.0,0.431263]
[1641914831143,0.78657491,41820.0,41818.0,0.79815652]
[1641914831543,0.78657491,41825.0,41818.0,0.79815652]
[1641914831747,0.78657491,41825.0,41819.0,0.03890177]
[1641914831987,0.78657491,41825.0,41824.0,0.00120185]
[1641914832585,0.78657491,41825.0,41824.0,1.93906121]
[1641914832785,0.78657491,41825.0,41824.0,2.36964886]
[1641914832985,0.78657491,41825.0,41824.0,2.41964886]
[1641914833183,1.32595713,41836.0,41824.0,2.35987421]
[1641914833383,1.32595713,41836.0,41830.0,0.119546]
[1641914833583,0.00334152,41833.0,41830.0,0.119546]
[1641914833783,0.00334152,41833.0,41832.0,0.059773]
[1641914834586,0.30955381,41836.0,41832.0,0.059773]
[1641914834785,0.00083559,41835.0,41832.0,0.059773]
[1641914835385,0.00083559,41835.0,41826.0,0.26932501]
[1641914835642,0.00083559,41835.0,41832.0,0.0999]
[1641914835836,0.30955381,41836.0,41833.0,0.059778]
[1641914836236,0.00334176,41839.0,41833.0,0.059778]
[1641914836737,0.00334176,41839.0,41835.0,0.30289713]
[1641914836937,0.7635563,41840.0,41836.0,0.059775]
[1641914837141,0.25014614,41839.0,41836.0,0.059775]
[1641914837437,0.25014614,41839.0,41832.0,0.0999]
[1641914837438,0.30992814,41839.0,41832.0,0.0999]
[1641914837640,0.25014614,41839.0,41832.0,0.0999]
[1641914837837,0.25014614,41839.0,41834.0,0.24554753]
[1641914838038,0.25014614,41839.0,41829.0,0.11956]
[1641914838237,0.24931051,41839.0,41829.0,0.11956]
[1641914838437,0.00083563,41839.0,41831.0,0.36422805]
[1641914838639,0.00083563,41839.0,41838.0,0.00126481]
[1641914838840,0.00083563,41839.0,41838.0,0.78339481]
[1641914839485,0.58830837,41840.0,41839.0,1.0898443]
[1641914839686,0.58830837,41840.0,41839.0,0.701218]
[1641914839884,0.00083565,41841.0,41839.0,0.701218]
[1641914840482,0.97255585,41847.0,41839.0,0.703218]
[1641914840483,1.29548933,41847.0,41839.0,0.703218]
[1641914840686,0.00083566,41842.0,41839.0,0.003218]
[1641914840889,0.65691394,41840.0,41839.0,0.002]
[1641914841084,0.40691394,41840.0,41839.0,0.1019]
[1641914841687,0.32756386,41847.0,41839.0,0.0999]
[1641914841887,0.00083566,41842.0,41839.0,0.0999]
[1641914842289,0.00083566,41842.0,41841.0,0.05977]
[1641914842487,0.09083566,41842.0,41841.0,0.05977]
[1641914842888,0.09,41842.0,41841.0,0.05977]
[1641914843734,0.44150476,41843.0,41841.0,0.05977]
[1641914844633,0.00083568,41844.0,41841.0,0.05977]
[1641914844838,0.00083568,41844.0,41841.0,0.10977]
[1641914845233,0.00083568,41844.0,41841.0,0.169532]
[1641914845435,0.32627556,41847.0,41843.0,0.059762]
[1641914845633,0.00083569,41845.0,41841.0,0.05]
[1641914846237,0.00083569,41845.0,41842.0,0.0999]
[1641914846435,0.00083569,41845.0,41843.0,0.35959616]
[1641914846635,0.32627556,41847.0,41843.0,0.35959616]
[1641914846883,0.0008357,41846.0,41843.0,0.35959616]
[1641914847683,0.32627556,41847.0,41843.0,0.35959616]
[1641914847886,0.71084431,41847.0,41841.0,0.05]
[1641914848086,0.27368976,41845.0,41843.0,0.119521]
[1641914848285,0.25903665,41844.0,41841.0,0.05]
[1641914848485,0.26030263,41844.0,41841.0,0.001]
[1641914848883,0.3834695,41843.0,41841.0,0.001]
[1641914849285,0.4834695,41843.0,41841.0,0.001]
[1641914849486,0.3834695,41843.0,41841.0,0.001]
[1641914849684,0.3834695,41843.0,41837.0,0.059774]
[1641914849884,0.3834695,41843.0,41836.0,0.059773]
[1641914850284,0.33660618,41838.0,41836.0,0.109773]
[1641914850738,0.98599309,41838.0,41836.0,0.109773]
[1641914852038,0.66718803,41838.0,41836.0,0.109773]
[1641914852239,0.66718803,41838.0,41824.0,1.1121]
[1641914852240,0.9,41836.0,41824.0,1.1121]
[1641914852440,0.9,41836.0,41817.0,0.00126392]
[1641914852441,0.044,41835.0,41817.0,0.00126392]
[1641914852643,0.00129537,41832.0,41819.0,0.119581]
[1641914852841,0.36088395,41824.0,41819.0,0.119581]
[1641914853038,0.36088395,41824.0,41820.0,0.119581]
[1641914853238,0.40393528,41823.0,41820.0,0.219481]
[1641914853439,0.40393528,41823.0,41820.0,0.119581]
[1641914853839,0.40393528,41823.0,41820.0,0.114581]
[1641914854038,0.40393528,41823.0,41818.0,0.32131626]
[1641914854238,0.73197821,41823.0,41819.0,0.0598]
[1641914854482,0.25207297,41822.0,41819.0,0.0598]
[1641914854883,0.074,41823.0,41819.0,0.0598]
[1641914855085,0.07483546,41823.0,41820.0,0.059798]
[1641914855685,0.00083546,41823.0,41820.0,0.059798]
[1641914855884,0.00083546,41823.0,41820.0,0.109798]
[1641914856085,0.39195706,41822.0,41820.0,0.05]
[1641914856284,0.39195706,41822.0,41818.0,0.119591]
[1641914856684,0.39195706,41822.0,41820.0,0.059798]
[1641914857586,0.07056964,41823.0,41821.0,0.04356421]
[1641914857789,0.07056964,41823.0,41820.0,0.59281965]
[1641914857790,0.00056964,41823.0,41822.0,1.26915792]
[1641914857987,0.00056964,41823.0,41822.0,1.27203259]
[1641914858235,0.00227822,41829.0,41823.0,1.3]
[1641914858436,0.00227822,41829.0,41826.0,0.059775]
[1641914858639,0.4248751,41833.0,41824.0,0.05]
[1641914858837,0.4248751,41833.0,41825.0,0.05]
[1641914859036,0.4248751,41833.0,41824.0,0.05]
[1641914859237,0.00120738,41838.0,41826.0,0.059776]
[1641914859436,0.967075,41842.0,41826.0,0.059776]
[1641914859437,0.967075,41842.0,41831.0,0.05977404]
[1641914859638,0.40868154,41842.0,41836.0,0.059773]
[1641914859838,0.40990206,41842.0,41836.0,0.059773]
[1641914860037,0.00083001,41839.0,41836.0,0.059773]
[1641914860437,0.86072319,41837.0,41836.0,0.059773]
[1641914860641,0.86072319,41837.0,41831.0,0.119545]
[1641914860642,1.1887969,41837.0,41831.0,0.119545]
[1641914861240,0.00082998,41836.0,41832.0,0.059783]
[1641914861639,0.31405425,41835.0,41832.0,0.059783]
[1641914862090,1.1887969,41837.0,41832.0,0.059783]
[1641914862290,0.00082998,41836.0,41834.0,0.059779]
[1641914862489,0.00082998,41836.0,41834.0,0.119555]
[1641914863389,0.23852203,41836.0,41834.0,0.119555]
[1641914864290,0.00082999,41837.0,41835.0,0.26718126]
[1641914864491,0.58830837,41843.0,41837.0,0.75]
[1641914864692,0.58830837,41843.0,41838.0,0.059767]
[1641914864889,0.58830837,41843.0,41838.0,0.059762]
[1641914865495,0.40819377,41843.0,41838.0,0.059762]
[1641914865745,0.40819377,41843.0,41839.0,0.059768]
[1641914866143,0.40819377,41843.0,41840.0,0.0999]
[1641914866341,0.48073551,41834.0,41812.0,0.2927]
[1641914866543,0.48073551,41834.0,41829.0,0.059772]
[1641914866742,0.48073551,41834.0,41821.0,0.793276]
[1641914866942,0.48073551,41834.0,41829.0,0.179303]
[1641914867745,0.40109029,41833.0,41829.0,0.179303]
[1641914868042,0.40109029,41833.0,41829.0,0.329203]
[1641914868442,0.40109029,41833.0,41832.0,0.059784]
[1641914868643,0.48073551,41834.0,41832.0,0.059784]
[1641914869883,0.48073551,41834.0,41832.0,0.054784]
[1641914870482,0.48073551,41834.0,41832.0,0.055784]
[1641914871783,0.48073551,41834.0,41832.0,0.054784]
[1641914871983,0.48073551,41834.0,41831.0,0.0999]
[1641914872283,0.00126132,41832.0,41831.0,0.0999]
[1641914872484,0.84526132,41832.0,41831.0,0.0999]
[1641914872683,1.12848803,41832.0,41831.0,0.0999]
[1641914872885,2.25094538,41832.0,41822.0,0.382732]
[1641914873143,2.25094538,41832.0,41824.0,0.00066754]
[1641914873144,0.059794,41828.0,41824.0,0.00066754]
[1641914873541,0.059794,41828.0,41825.0,0.059792]
[1641914873940,0.65005946,41828.0,41825.0,0.059792]
[1641914874336,0.2492572,41827.0,41824.0,0.0006675]
[1641914874536,0.059797,41826.0,41824.0,0.0006675]
[1641914874736,0.54852182,41825.0,41824.0,0.0006675]
[1641914874937,0.61652852,41825.0,41824.0,0.0006675]
[1641914875137,0.89386369,41825.0,41824.0,0.0006675]
[1641914875338,0.89386369,41825.0,41822.0,0.0999]
[1641914875537,0.89386369,41825.0,41822.0,0.10056751]
[1641914875538,1.24926969,41825.0,41822.0,0.10056751]
[1641914875837,0.059804,41824.0,41822.0,0.00066751]
[1641914876042,0.9409096,41823.0,41822.0,0.00066751]
[1641914876537,0.9929096,41823.0,41813.0,0.0999]
[1641914876738,0.9929096,41823.0,41820.0,0.00070871]
[1641914876985,0.402,41823.0,41820.0,0.00070871]
[1641914877285,0.402,41823.0,41815.0,0.28106561]
[1641914877486,0.402,41823.0,41813.0,0.159704]
[1641914877487,0.059806,41821.0,41813.0,0.159704]
[1641914877686,0.052,41823.0,41817.0,0.069376]
[1641914877890,0.59037121,41821.0,41817.0,0.069376]
[1641914878487,0.61637121,41821.0,41817.0,0.064803]
[1641914878693,0.33394471,41821.0,41818.0,0.179385]
[1641914878886,0.33394471,41821.0,41818.0,0.119586]
[1641914879687,0.026,41821.0,41818.0,0.119586]
[1641914879886,0.59037121,41824.0,41818.0,0.119586]
[1641914880092,0.59037121,41824.0,41813.0,0.0999]
[1641914880094,0.59164601,41823.0,41813.0,0.0999]
[1641914880287,0.59164601,41823.0,41818.0,0.00085557]
[1641914880288,0.31669996,41822.0,41818.0,0.00085557]
[1641914880488,0.31669996,41822.0,41821.0,0.0999]
[1641914880950,1.70026612,41822.0,41821.0,0.0999]
[1641914881151,2.15188653,41822.0,41821.0,0.0999]
[1641914882050,2.21169253,41822.0,41821.0,0.0999]
[1641914882751,1.5710495,41822.0,41821.0,0.0999]
[1641914883551,1.6710495,41822.0,41821.0,0.0999]
[1641914883752,1.6230495,41822.0,41821.0,0.0999]
[1641914884390,0.059806,41822.0,41821.0,0.0999]
[1641914884588,0.049,41822.0,41821.0,0.0999]
[1641914885989,1.02561186,41824.0,41821.0,0.0999]
[1641914886188,0.33696883,41824.0,41818.0,0.33369153]
[1641914886388,0.33696883,41824.0,41823.0,0.0999]
[1641914886592,0.39696883,41824.0,41823.0,0.0999]
[1641914886790,0.45676883,41824.0,41823.0,0.0999]
[1641914887189,0.65676883,41824.0,41823.0,0.0999]
[1641914887391,0.45676883,41824.0,41823.0,0.0999]
[1641914887689,0.45676883,41824.0,41818.0,0.0008556]
[1641914887690,0.06,41824.0,41818.0,0.0008556]
[1641914887889,0.06,41824.0,41818.0,0.2400206]
[1641914888142,0.408897,41827.0,41818.0,0.2400206]
[1641914888534,0.408897,41827.0,41819.0,0.059796]
[1641914888535,0.05,41824.0,41819.0,0.059796]
[1641914888736,0.05,41824.0,41820.0,0.40292005]
[1641914888936,0.05,41824.0,41821.0,0.23913]
[1641914889335,0.05,41824.0,41821.0,0.28913]
[1641914889936,0.24887751,41829.0,41821.0,0.28913]
[1641914890136,0.24887751,41829.0,41821.0,0.169563]
[1641914890537,0.28987751,41829.0,41821.0,0.051]
[1641914890838,0.53433103,41828.0,41821.0,0.051]
[1641914891037,0.53433103,41828.0,41826.0,0.0999]
[1641914891438,0.75189068,41827.0,41826.0,0.0999]
[1641914892488,0.75189068,41827.0,41818.0,0.29741942]
[1641914892689,0.71471128,41821.0,41818.0,0.00085563]
[1641914892885,0.71471128,41821.0,41818.0,0.05085563]
[1641914893089,0.29989068,41827.0,41820.0,0.0999]
[1641914893688,0.048,41827.0,41821.0,0.2625242]
[1641914893887,0.68864303,41828.0,41821.0,0.2625242]
[1641914894087,0.93422761,41828.0,41821.0,0.2625242]
[1641914894290,0.68864303,41828.0,41821.0,0.2625242]
[1641914894688,0.72964303,41828.0,41819.0,0.41387438]
[1641914894989,0.97911821,41828.0,41818.0,0.00085561]
[1641914895643,0.72964303,41828.0,41824.0,0.28879554]
[1641914895838,0.68864303,41828.0,41824.0,0.28879554]
[1641914896037,0.68864303,41828.0,41824.0,0.33879554]
[1641914896245,0.00082856,41831.0,41827.0,0.00122826]
[1641914896439,0.00082856,41831.0,41830.0,0.00123379]
[1641914896640,0.00082856,41831.0,41830.0,1.85259288]
[1641914896842,0.00082856,41831.0,41830.0,2.2851959]
[1641914897139,0.48073551,41834.0,41830.0,2.2851959]
[1641914897140,0.48073551,41834.0,41833.0,0.87573743]
[1641914897338,0.48073551,41834.0,41833.0,0.6]
[1641914898340,0.48073551,41834.0,41832.0,0.059767]
[1641914898539,0.48073551,41834.0,41825.0,0.0479]
[1641914898938,0.48073551,41834.0,41830.0,0.059777]
[1641914899139,0.48073551,41834.0,41831.0,0.26071556]
[1641914899391,0.48073551,41834.0,41831.0,0.50161131]
[1641914899587,0.48073551,41834.0,41831.0,0.55161131]
[1641914900391,0.48073551,41834.0,41832.0,0.370813]
[1641914900590,0.48073551,41834.0,41833.0,0.04414309]
[1641914900796,0.48073551,41834.0,41833.0,1.71495609]
[1641914900992,0.48073551,41834.0,41833.0,1.670813]
[1641914901191,0.00082877,41835.0,41834.0,1.3]
[1641914901392,0.00082877,41835.0,41834.0,2.12914199]
[1641914901593,0.00082877,41835.0,41834.0,1.82969546]
[1641914901793,0.76874985,41845.0,41838.0,0.25402496]
[1641914901996,0.00082879,41837.0,41834.0,1.39912446]
[1641914902192,0.00082879,41837.0,41834.0,1.3979]
[1641914902593,0.00082879,41837.0,41835.0,0.119532]
[1641914902992,0.76874985,41845.0,41836.0,0.37530229]
[1641914903239,0.0006474,41838.0,41836.0,0.37530229]
[1641914903642,0.0006474,41838.0,41837.0,1.67211265]
[1641914904139,0.27925676,41849.0,41838.0,0.119517]
[1641914904438,0.00258925,41846.0,41843.0,0.24549642]
[1641914904838,0.00258925,41846.0,41841.0,0.39389712]
[1641914905039,0.00258925,41846.0,41843.0,0.059759]
[1641914905440,0.40583093,41847.0,41843.0,0.059759]
[1641914905638,0.40647839,41847.0,41843.0,0.059759]
[1641914905839,0.40647839,41847.0,41839.0,0.28630476]
[1641914906240,0.40647839,41847.0,41841.0,0.059762]
[1641914906443,0.40647839,41847.0,41839.0,0.28630476]
[1641914906740,0.00068694,41846.0,41839.0,0.001]
[1641914906994,0.25505954,41846.0,41839.0,0.001]
[1641914907196,0.31088852,41846.0,41839.0,0.001]
[1641914907394,0.05977,41845.0,41839.0,0.001]
[1641914907794,0.05977,41845.0,41834.0,0.0479]
[1641914907795,0.25388552,41844.0,41835.0,0.31174105]
[1641914907994,0.25457244,41844.0,41835.0,0.31174105]
[1641914908196,0.32281518,41842.0,41835.0,0.31174105]
[1641914908394,0.32281518,41842.0,41835.0,0.37151105]
[1641914908596,0.32281518,41842.0,41835.0,0.37451105]
[1641914909294,0.00068689,41841.0,41835.0,0.37451105]
[1641914909700,0.00068689,41841.0,41835.0,0.06277]
[1641914909895,0.00068689,41841.0,41833.0,0.0999]
[1641914910195,0.47281518,41842.0,41833.0,0.0999]
[1641914910395,0.00067835,41839.0,41833.0,0.0999]
[1641914910649,0.00067835,41839.0,41833.0,0.1009]
[1641914910841,0.34642554,41836.0,41833.0,0.1009]
[1641914911041,0.05,41836.0,41834.0,0.059772]
[1641914911440,0.00067835,41839.0,41833.0,0.1009]
[1641914911441,1.11620753,41840.0,41833.0,0.1009]
[1641914911640,0.00067834,41837.0,41833.0,0.1009]
[1641914911840,0.33564507,41837.0,41833.0,0.0999]
[1641914912040,0.38564507,41837.0,41833.0,0.0999]
[1641914912243,0.33564507,41837.0,41833.0,0.0999]
[1641914912441,0.59437675,41836.0,41833.0,0.0999]
[1641914912642,0.65415332,41836.0,41833.0,0.1009]
[1641914913041,0.05977657,41836.0,41833.0,0.1009]
[1641914913241,0.93002182,41837.0,41833.0,0.1009]
[1641914913443,0.45343399,41835.0,41833.0,0.1009]
[1641914913844,0.51321117,41835.0,41833.0,0.0999]
[1641914914044,0.51321117,41835.0,41834.0,0.0999]
[1641914914245,0.56321117,41835.0,41834.0,0.0999]
[1641914914890,0.51321117,41835.0,41834.0,0.0999]
[1641914915390,0.05977718,41835.0,41834.0,0.0999]
[1641914916389,0.59505695,41837.0,41833.0,0.05]
[1641914916590,0.59505695,41837.0,41834.0,0.002]
[1641914917092,0.0006802,41837.0,41834.0,0.002]
[1641914917290,0.59437675,41838.0,41834.0,0.061764]
[1641914917492,0.64505656,41838.0,41834.0,0.1019]
[1641914917690,0.05067981,41838.0,41834.0,0.1019]
[1641914917889,0.00067981,41838.0,41834.0,0.0999]
[1641914918538,0.53716534,41837.0,41834.0,0.0999]
[1641914918739,0.53716534,41837.0,41834.0,0.1019]
[1641914919041,0.26877049,41836.0,41834.0,0.1019]
[1641914920839,0.06045381,41837.0,41834.0,0.1019]
[1641914921040,0.59437675,41839.0,41834.0,0.1519]
[1641914921240,0.59437675,41839.0,41835.0,0.26461715]
[1641914921241,0.00067988,41837.0,41835.0,0.26461715]
[1641914921440,0.00067988,41837.0,41835.0,0.26053282]
[1641914921739,0.00067988,41837.0,41834.0,0.1499]
[1641914922287,0.23971903,41846.0,41835.0,0.71461663]
[1641914922288,0.00067989,41838.0,41835.0,0.71461663]
[1641914922487,0.00067989,41838.0,41835.0,0.45021426]
[1641914922887,0.58505664,41842.0,41836.0,0.85]
[1641914923088,0.64481964,41843.0,41838.0,0.059763]
[1641914923290,0.87559998,41843.0,41838.0,0.059763]
[1641914923495,0.87559998,41843.0,41834.0,0.1049]
[1641914923496,0.63505664,41843.0,41834.0,0.1049]
[1641914923692,0.059777,41841.0,41834.0,0.1049]
[1641914923890,0.27958455,41835.0,41834.0,0.1049]
[1641914924489,0.58989791,41835.0,41834.0,0.1049]
[1641914924690,0.42963574,41835.0,41834.0,0.1059]
[1641914925090,0.05,41835.0,41834.0,0.1059]
[1641914925940,0.05,41835.0,41834.0,0.0999]
[1641914926141,0.10977,41838.0,41834.0,0.0999]
[1641914926740,0.05977,41838.0,41834.0,0.0999]
[1641914926942,0.69343955,41840.0,41834.0,0.20967]
[1641914927143,0.69426164,41840.0,41839.0,0.00127725]
[1641914927340,0.68426164,41840.0,41839.0,0.00127725]
[1641914927539,0.00082209,41840.0,41839.0,0.00127725]
[1641914927741,0.00082209,41840.0,41839.0,1.42209025]
[1641914927942,0.00082209,41840.0,41839.0,1.73597788]
[1641914928139,0.27405596,41848.0,41840.0,0.059755]
[1641914928340,0.00082216,41842.0,41840.0,0.059755]
[1641914928543,0.00082216,41842.0,41841.0,1.4462677]
[1641914928742,0.00082216,41842.0,41841.0,2.72354967]
[1641914928942,0.00082216,41842.0,41841.0,2.82354967]
[1641914929389,0.78558338,41855.0,41845.0,0.05974]
[1641914929591,0.00328819,41850.0,41847.0,1.335736]
[1641914929790,0.77887157,41855.0,41854.0,0.737153]
[1641914930189,0.77887157,41855.0,41851.0,0.0479]
[1641914930388,0.30815964,41859.0,41851.0,0.0479]
[1641914930593,0.059749,41857.0,41851.0,0.1478]
[1641914930793,0.05974987,41854.0,41851.0,0.1528]
[1641914930990,0.34224243,41852.0,41851.0,0.1528]
[1641914931690,0.40871303,41854.0,41851.0,0.1528]
[1641914931691,0.05974987,41854.0,41851.0,0.1528]